[Event "GER-ch Youth U10w 2019"]
[Site "Willingen"]
[Date "2019.06.10"]
[Round "3.1"]
[White "Moradi, Yassaman"]
[Black "Mirnaya, Veronika"]
[Result "0-1"]
[ECO "C45"]
[WhiteElo "1174"]
[BlackElo "1237"]
[Annotator "NA"]
[PlyCount "122"]
[EventDate "2019.06.07"]
[EventType "swiss"]
[EventRounds "11"]
[EventCountry "GER"]
[SourceTitle "playchess.com"]
[Source "ChessBase"]
[SourceQuality "1"]
[TimeControl "40/4500+30:900+30"]

1. e4 {[%emt 0:00:00]} e5 {[%emt 0:00:00]} 2. Nf3 {[%emt 0:00:00]} Nc6 {[%emt 0:00:00]} 3. d4 {[%emt 0:00:00]} exd4 {[%emt 0:00:00]} 4. Nxd4 {[%emt 0:00:00]} Bc5 {[%emt 0:00:00]} 5. Be3 {[%emt 0:00:00]} Qf6 {[%emt 0:00:02]} 6. c3 {[%emt 0:00:00]} Nge7 {[%emt 0:00:07]} 7. Be2 {[%emt 0:00:08]} d5 {[%emt 0:00:27]} 8. Nd2 {[%emt 0:00:20]} O-O {[%emt 0:01:05]} 9. O-O {[%emt 0:00:23]} Qg6 {[%emt 0:01:14]} 10. Bh5 {[%emt 0:02:34]} Qf6 {[%emt 0:01:34]} 11. f4 {[%emt 0:02:07]} Bxd4 {[%emt 0:01:38]} 12. cxd4 {[%emt 0:00:58]} dxe4 {[%emt 0:02:51]} 13. Nxe4 {[%emt 0:00:19]} Qe6 {[%emt 0:00:48]} 14. Bf3 {[%emt 0:01:15]} h6 {[%emt 0:04:01]} 15. Re1 {[%emt 0:01:59]} Qg6 {[%emt 0:04:00]} 16. Nc3 {[%emt 0:01:01]} Nb4 {[%emt 0:02:48]} 17. a3 {[%emt 0:00:45]} Nc2 {[%emt 0:05:33]} 18. Be4 {[%emt 0:00:15]} Nxe3 {[%emt 0:00:08]} 19. Rxe3 {[%emt 0:00:37]} Qf6 {[%emt 0:00:34]} 20. Qf3 {[%emt 0:03:00]} Qxd4 {[%emt 0:01:07]} 21. Rc1 {[%emt 0:01:22]} c6 {[%emt 0:01:55]} 22. Rd1 {[%emt 0:01:14]} Qb6 {[%emt 0:01:02]} 23. Kf1 {[%emt 0:04:31]} Bg4 {[%emt 0:00:58]} 24. Na4 {[%emt 0:00:53]} Bxf3 {[%emt 0:01:59]} 25. Nxb6 {[%emt 0:00:08]} Bxd1 {[%emt 0:00:06]} 26. Nxa8 {[%emt 0:00:05]} Rxa8 {[%emt 0:00:09]} 27. Bd3 {[%emt 0:00:26]} Nd5 {[%emt 0:00:31]} 28. Re4 {[%emt 0:00:57]} Bh5 {[%emt 0:00:42]} 29. Rd4 {[%emt 0:01:22]} Re8 {[%emt 0:00:54]} 30. b4 {[%emt 0:01:34]} Ne3+ {[%emt 0:00:35]} 31. Kf2 {[%emt 0:00:14]} Ng4+ {[%emt 0:02:10]} 32. Kg3 {[%emt 0:00:46]} Nf6 {[%emt 0:02:31]} 33. b5 {[%emt 0:00:21]} cxb5 {[%emt 0:00:31]} 34. Bxb5 {[%emt 0:00:06]} Re3+ {[%emt 0:00:21]} 35. Kf2 {[%emt 0:00:17]} Rxa3 {[%emt 0:01:11]} 36. Bd3 {[%emt 0:00:13]} Bg6 {[%emt 0:00:41]} 37. f5 {[%emt 0:00:30]} Bh5 {[%emt 0:01:51]} 38. h3 {[%emt 0:00:31]} Ra2+ {[%emt 0:01:20]} 39. Kg1 {[%emt 0:00:13]} Be2 {[%emt 0:00:38]} 40. Bxe2 {[%emt 0:01:18]} Rxe2 {[%emt 0:00:08]} 41. Kh2 {[%emt 0:15:13]} Re4 {[%emt 0:15:30]} 42. Rd8+ {[%emt 0:00:22]} Kh7 {[%emt 0:00:10]} 43. Rc8 {[%emt 0:00:31]} a5 {[%emt 0:00:21]} 44. Rc7 {[%emt 0:00:14]} b5 {[%emt 0:00:22]} 45. Rxf7 {[%emt 0:00:09]} a4 {[%emt 0:00:12]} 46. Ra7 {[%emt 0:01:44]} Re5 {[%emt 0:01:08]} 47. g4 {[%emt 0:00:19]} Nd5 {[%emt 0:01:31]} 48. Kg3 {[%emt 0:00:35]} Re3+ {[%emt 0:00:19]} 49. Kg2 {[%emt 0:00:31]} a3 {[%emt 0:00:24]} 50. h4 {[%emt 0:00:03]} b4 {[%emt 0:00:23]} 51. g5 {[%emt 0:00:10]} hxg5 {[%emt 0:00:50]} 52. hxg5 {[%emt 0:00:07]} Re7 {[%emt 0:00:29]} 53. Ra6 {[%emt 0:00:45]} Rb7 {[%emt 0:02:35]} 54. Kg3 {[%emt 0:00:31]} b3 {[%emt 0:00:26]} 55. Kg4 {[%emt 0:01:07]} b2 {[%emt 0:03:16]} 56. Ra8 {[%emt 0:00:06]} g6 {[%emt 0:01:33]} 57. fxg6+ {[%emt 0:00:14]} Kxg6 {[%emt 0:00:08]} 58. Rxa3 {[%emt 0:00:44]} b1=Q {[%emt 0:00:13]} 59. Ra6+ {[%emt 0:01:04]} Rb6 {[%emt 0:00:12]} 60. Ra5 {[%emt 0:00:26]} Qd3 {[%emt 0:00:32] normal} 61. Ra8 {[%emt 0:00:47]} Rb4# {[%emt 0:00:08] normal} 0-1

[Event "GER-ch Youth U10w 2019"]
[Site "Willingen"]
[Date "2019.06.10"]
[Round "3.2"]
[White "Heutling, Sarah"]
[Black "Wartenberg, Alissa"]
[Result "0-1"]
[ECO "C58"]
[WhiteElo "1147"]
[BlackElo "1291"]
[Annotator "NA"]
[PlyCount "48"]
[EventDate "2019.06.07"]
[EventType "swiss"]
[EventRounds "11"]
[EventCountry "GER"]
[SourceTitle "playchess.com"]
[Source "ChessBase"]
[SourceQuality "1"]
[TimeControl "40/4500+30:900+30"]

1. e4 {[%emt 0:00:00]} e5 {[%emt 0:00:00]} 2. Nf3 {[%emt 0:00:00]} Nc6 {[%emt 0:00:00]} 3. Bc4 {[%emt 0:00:00]} Nf6 {[%emt 0:00:00]} 4. Ng5 {[%emt 0:00:00]} d5 {[%emt 0:00:00]} 5. exd5 {[%emt 0:00:00]} Na5 {[%emt 0:00:11]} 6. Bb5+ {[%emt 0:00:07]} c6 {[%emt 0:00:08]} 7. dxc6 {[%emt 0:00:07]} bxc6 {[%emt 0:00:06]} 8. Qf3 {[%emt 0:00:54]} Be7 {[%emt 0:00:08]} 9. Bd3 {[%emt 0:00:19]} O-O {[%emt 0:02:10]} 10. Nc3 {[%emt 0:00:22]} h6 {[%emt 0:01:50]} 11. Nge4 {[%emt 0:00:23]} Nxe4 {[%emt 0:00:22]} 12. Qxe4 {[%emt 0:00:14]} f5 {[%emt 0:01:16]} 13. Qxe5 {[%emt 0:01:32]} Re8 {[%emt 0:00:32]} 14. O-O {[%emt 0:00:20]} Bd6 {[%emt 0:00:47]} 15. Qd4 {[%emt 0:01:18]} Bxh2+ {[%emt 0:00:13]} 16. Kxh2 {[%emt 0:00:23]} Qxd4 {[%emt 0:00:10]} 17. Ne2 {[%emt 0:01:20]} Qh4+ {[%emt 0:00:32]} 18. Kg1 {[%emt 0:00:13]} f4 {[%emt 0:00:34]} 19. b4 {[%emt 0:03:00]} f3 {[%emt 0:01:33]} 20. gxf3 {[%emt 0:02:30]} Nb7 {[%emt 0:01:46]} 21. Ng3 {[%emt 0:02:05]} Bh3 {[%emt 0:01:04]} 22. Rd1 {[%emt 0:00:12]} Qf6 {[%emt 0:00:22]} 23. Rb1 {[%emt 0:01:24]} Qxf3 {[%emt 0:00:30] normal} 24. Bf1 {[%emt 0:02:53]} Qxd1 {[%emt 0:00:12] normal} 0-1

[Event "GER-ch Youth U10w 2019"]
[Site "Willingen"]
[Date "2019.06.10"]
[Round "3.3"]
[White "Halas, Neele Zoe"]
[Black "Glotz, Diana"]
[Result "0-1"]
[ECO "C41"]
[WhiteElo "1109"]
[BlackElo "1244"]
[Annotator "NA"]
[PlyCount "60"]
[EventDate "2019.06.07"]
[EventType "swiss"]
[EventRounds "11"]
[EventCountry "GER"]
[SourceTitle "playchess.com"]
[Source "ChessBase"]
[SourceQuality "1"]
[TimeControl "40/4500+30:900+30"]

1. e4 {[%emt 0:00:00]} e5 {[%emt 0:00:00]} 2. Nf3 {[%emt 0:00:00]} d6 {[%emt 0:00:00]} 3. d4 {[%emt 0:01:17]} Nd7 {[%emt 0:00:09]} 4. dxe5 {[%emt 0:00:50]} dxe5 {[%emt 0:00:14]} 5. Bc4 {[%emt 0:00:42]} c6 {[%emt 0:00:49]} 6. Nc3 {[%emt 0:02:51]} Be7 {[%emt 0:01:46]} 7. Be3 {[%emt 0:00:46]} Ngf6 {[%emt 0:01:34]} 8. O-O {[%emt 0:04:19]} O-O {[%emt 0:01:14]} 9. Qd3 {[%emt 0:03:22]} Qc7 {[%emt 0:01:38]} 10. Na4 {[%emt 0:02:41]} b5 {[%emt 0:00:46]} 11. Bxf7+ {[%emt 0:07:36]} Rxf7 {[%emt 0:00:23]} 12. Nc3 {[%emt 0:01:33]} Rf8 {[%emt 0:00:22]} 13. Ne2 {[%emt 0:01:21]} h6 {[%emt 0:02:39]} 14. Qb3+ {[%emt 0:02:12]} Kh8 {[%emt 0:00:43]} 15. Ng3 {[%emt 0:00:49]} Rd8 {[%emt 0:02:30]} 16. Nf5 {[%emt 0:01:41]} Nc5 {[%emt 0:04:59]} 17. Qf7 {[%emt 0:02:10]} Bxf5 {[%emt 0:04:04]} 18. Bxc5 {[%emt 0:02:16]} Rd7 {[%emt 0:02:44]} 19. exf5 {[%emt 0:09:12]} Bxc5 {[%emt 0:00:13]} 20. Qe6 {[%emt 0:03:31]} Re8 {[%emt 0:01:57]} 21. Qb3 {[%emt 0:00:31]} e4 {[%emt 0:01:36]} 22. Nh4 {[%emt 0:06:14]} Ng4 {[%emt 0:02:53]} 23. Ng6+ {[%emt 0:02:55]} Kh7 {[%emt 0:00:58]} 24. Qg3 {[%emt 0:03:19]} Qxg3 {[%emt 0:00:13]} 25. hxg3 {[%emt 0:00:18]} Rd5 {[%emt 0:00:37]} 26. Nf4 {[%emt 0:01:01]} Rxf5 {[%emt 0:01:18]} 27. b4 {[%emt 0:02:52]} Bxb4 {[%emt 0:00:56]} 28. f3 {[%emt 0:00:21]} Bc5+ {[%emt 0:00:07] normal} 29. Kh1 {[%emt 0:00:52]} Nf2+ 30. Kh2 {[%emt 0:00:52] normal} e3 {[%emt 0:00:44] normal} 0-1

[Event "GER-ch Youth U10w 2019"]
[Site "Willingen"]
[Date "2019.06.10"]
[Round "3.4"]
[White "Vöcking, Julia"]
[Black "Bako, Isabella"]
[Result "1-0"]
[ECO "B40"]
[WhiteElo "812"]
[BlackElo "1215"]
[Annotator "NA"]
[PlyCount "57"]
[EventDate "2019.06.07"]
[EventType "swiss"]
[EventRounds "11"]
[EventCountry "GER"]
[SourceTitle "playchess.com"]
[Source "ChessBase"]
[SourceQuality "1"]
[TimeControl "40/4500+30:900+30"]

1. e4 {[%emt 0:00:00]} c5 {[%emt 0:00:00]} 2. Nf3 {[%emt 0:00:00]} e6 {[%emt 0:00:00]} 3. d3 {[%emt 0:00:00]} Nc6 {[%emt 0:00:40]} 4. Nbd2 {[%emt 0:00:14]} Qc7 {[%emt 0:00:55]} 5. g3 {[%emt 0:00:17]} g6 {[%emt 0:01:19]} 6. Bg2 {[%emt 0:00:20]} Bg7 {[%emt 0:00:53]} 7. O-O {[%emt 0:00:19]} Nge7 {[%emt 0:00:36]} 8. Re1 {[%emt 0:00:39]} a6 {[%emt 0:01:37]} 9. Nc4 {[%emt 0:00:31]} b5 {[%emt 0:01:07]} 10. Bf4 {[%emt 0:00:42]} e5 {[%emt 0:02:02]} 11. Bxe5 {[%emt 0:00:57]} Nxe5 {[%emt 0:00:47]} 12. Ncxe5 {[%emt 0:00:23]} Bxe5 {[%emt 0:00:32]} 13. Nxe5 {[%emt 0:00:16]} Qxe5 {[%emt 0:00:34]} 14. c3 {[%emt 0:00:19]} Rb8 {[%emt 0:01:16]} 15. d4 {[%emt 0:00:16]} Qf6 {[%emt 0:01:43]} 16. e5 {[%emt 0:00:33]} Qf5 {[%emt 0:00:34]} 17. Be4 {[%emt 0:00:15]} Qh3 {[%emt 0:00:50]} 18. Bg2 {[%emt 0:00:20]} Qh6 {[%emt 0:00:18]} 19. dxc5 {[%emt 0:01:00]} O-O {[%emt 0:01:22]} 20. Qd6 {[%emt 0:00:57]} Nc6 {[%emt 0:01:28]} 21. Bxc6 {[%emt 0:00:54]} Bb7 {[%emt 0:01:56]} 22. Bxd7 {[%emt 0:01:34]} Rfd8 {[%emt 0:01:52]} 23. e6 {[%emt 0:00:49]} Kg7 {[%emt 0:15:59]} 24. c6 {[%emt 0:00:19]} Bxc6 {[%emt 0:04:04]} 25. Qe5+ {[%emt 0:01:00]} f6 {[%emt 0:02:05]} 26. Qc7 {[%emt 0:01:24]} Bxd7 {[%emt 0:02:39]} 27. exd7 {[%emt 0:00:29]} Kf8 {[%emt 0:03:34]} 28. Qd6+ {[%emt 0:00:55]} Kg8 {[%emt 0:01:37]} 29. Qe6+ {[%emt 0:00:35] normal} 1-0

[Event "GER-ch Youth U10w 2019"]
[Site "Willingen"]
[Date "2019.06.10"]
[Round "3.5"]
[White "Bangiev, Katharina"]
[Black "Ezold, Johanna Sophie"]
[Result "1-0"]
[ECO "A05"]
[WhiteElo "1003"]
[BlackElo "1076"]
[Annotator "NA"]
[PlyCount "79"]
[EventDate "2019.06.07"]
[EventType "swiss"]
[EventRounds "11"]
[EventCountry "GER"]
[SourceTitle "playchess.com"]
[Source "ChessBase"]
[SourceQuality "1"]
[TimeControl "40/4500+30:900+30"]

1. Nf3 {[%emt 0:00:00]} Nf6 {[%emt 0:00:00]} 2. g3 {[%emt 0:00:00]} d5 {[%emt 0:00:46]} 3. Bg2 {[%emt 0:00:12]} Nc6 {[%emt 0:00:24]} 4. O-O {[%emt 0:00:23]} e5 {[%emt 0:00:19]} 5. d3 {[%emt 0:00:26]} h6 {[%emt 0:00:23]} 6. Nc3 {[%emt 0:00:38]} Be6 {[%emt 0:00:19]} 7. e4 {[%emt 0:00:22]} d4 {[%emt 0:00:45]} 8. Ne2 {[%emt 0:00:12]} Bc5 {[%emt 0:00:46]} 9. c3 {[%emt 0:00:12]} Qd6 {[%emt 0:02:34]} 10. cxd4 {[%emt 0:00:59]} Nxd4 {[%emt 0:03:54]} 11. Nexd4 {[%emt 0:00:35]} Bxd4 {[%emt 0:00:57]} 12. Nxd4 {[%emt 0:01:18]} Qxd4 {[%emt 0:00:57]} 13. Qc2 {[%emt 0:00:45]} c5 {[%emt 0:02:52]} 14. Be3 {[%emt 0:00:39]} Qd7 {[%emt 0:02:54]} 15. Qxc5 {[%emt 0:00:41]} Ng4 {[%emt 0:02:30]} 16. Rfd1 {[%emt 0:04:59]} Rc8 {[%emt 0:03:41]} 17. Qxa7 {[%emt 0:02:26]} O-O {[%emt 0:01:03]} 18. Qb6 {[%emt 0:01:09]} Rc6 {[%emt 0:03:29]} 19. Qb4 {[%emt 0:01:00]} Rfc8 {[%emt 0:02:50]} 20. b3 {[%emt 0:05:55]} R8c7 {[%emt 0:06:30]} 21. d4 {[%emt 0:01:46]} Rd6 {[%emt 0:06:30]} 22. d5 {[%emt 0:02:02]} Nxe3 {[%emt 0:01:02]} 23. fxe3 {[%emt 0:00:42]} Bg4 {[%emt 0:00:39]} 24. Rdc1 {[%emt 0:00:54]} Rxc1+ {[%emt 0:01:07]} 25. Rxc1 {[%emt 0:00:23]} Rf6 {[%emt 0:03:56]} 26. Rf1 {[%emt 0:02:28]} Rg6 {[%emt 0:02:57]} 27. a4 {[%emt 0:01:02]} Be2 {[%emt 0:01:40]} 28. Rf2 {[%emt 0:00:27]} Ba6 {[%emt 0:01:02]} 29. Qa5 {[%emt 0:01:37]} Qc8 {[%emt 0:01:28]} 30. Qd2 {[%emt 0:01:34]} b5 {[%emt 0:02:36]} 31. Qb2 {[%emt 0:02:17]} Rb6 {[%emt 0:04:50]} 32. a5 {[%emt 0:04:40]} Rd6 {[%emt 0:01:12]} 33. Qxe5 {[%emt 0:01:47]} Rg6 {[%emt 0:01:40]} 34. Qe7 {[%emt 0:01:12]} f6 {[%emt 0:06:06]} 35. d6 {[%emt 0:02:07]} Qf8 {[%emt 0:03:09]} 36. Qxf8+ {[%emt 0:01:55]} Kxf8 {[%emt 0:00:36]} 37. Rd2 {[%emt 0:00:26]} Ke8 {[%emt 0:00:15]} 38. Bh3 {[%emt 0:01:02]} Kd8 {[%emt 0:00:22]} 39. d7 {[%emt 0:00:21]} Rg5 {[%emt 0:00:34]} 40. Rd6 {[%emt 0:00:18] normal} 1-0

[Event "GER-ch Youth U10w 2019"]
[Site "Willingen"]
[Date "2019.06.10"]
[Round "3.6"]
[White "Lichtenegger, Katharina"]
[Black "Sickmann, Lisa"]
[Result "0-1"]
[ECO "B41"]
[WhiteElo "1238"]
[BlackElo "1418"]
[Annotator "NA"]
[PlyCount "92"]
[EventDate "2019.06.07"]
[EventType "swiss"]
[EventRounds "11"]
[EventCountry "GER"]
[SourceTitle "playchess.com"]
[Source "ChessBase"]
[SourceQuality "1"]
[TimeControl "40/4500+30:900+30"]

1. e4 {[%emt 0:00:00]} c5 {[%emt 0:00:00]} 2. Nf3 {[%emt 0:00:00]} e6 {[%emt 0:00:12]} 3. d4 {[%emt 0:00:06]} cxd4 {[%emt 0:00:29]} 4. Nxd4 {[%emt 0:00:45]} a6 {[%emt 0:01:59]} 5. Nf3 {[%emt 0:02:26]} Qc7 {[%emt 0:01:09]} 6. Nc3 {[%emt 0:02:03]} Nc6 {[%emt 0:05:53]} 7. Be3 {[%emt 0:04:36]} Nf6 {[%emt 0:01:54]} 8. Be2 {[%emt 0:02:41]} Bb4 {[%emt 0:04:11]} 9. O-O {[%emt 0:07:25]} Bxc3 {[%emt 0:01:24]} 10. bxc3 {[%emt 0:00:22]} Nxe4 {[%emt 0:00:37]} 11. c4 {[%emt 0:02:12]} Nc3 {[%emt 0:03:24]} 12. Qd2 {[%emt 0:01:12]} Nxe2+ {[%emt 0:01:26]} 13. Qxe2 {[%emt 0:00:15]} Ne5 {[%emt 0:02:40]} 14. c5 {[%emt 0:01:52]} Nxf3+ {[%emt 0:04:36]} 15. Qxf3 {[%emt 0:00:41]} O-O {[%emt 0:01:00]} 16. Qg4 {[%emt 0:02:02]} d5 {[%emt 0:02:54]} 17. Rfe1 {[%emt 0:03:47]} Qe7 {[%emt 0:05:01]} 18. Bh6 {[%emt 0:02:56]} Qf6 {[%emt 0:06:40]} 19. Bd2 {[%emt 0:05:24]} Kh8 {[%emt 0:01:28]} 20. Rab1 {[%emt 0:03:39]} Qe7 {[%emt 0:01:36]} 21. Bc3 {[%emt 0:01:40]} f6 {[%emt 0:00:12]} 22. Re2 {[%emt 0:04:27]} Qxc5 {[%emt 0:04:19]} 23. Bb4 {[%emt 0:04:06]} Qb5 24. Rb3 {[%emt 0:02:42]} Rg8 {[%emt 0:01:58]} 25. Ree3 {[%emt 0:03:27]} Qc4 {[%emt 0:01:22]} 26. Qxc4 {[%emt 0:01:15]} dxc4 {[%emt 0:00:08]} 27. Rbc3 {[%emt 0:00:33]} b5 {[%emt 0:00:27]} 28. Rh3 {[%emt 0:03:20]} e5 {[%emt 0:00:06]} 29. Rh4 {[%emt 0:01:16]} Bf5 {[%emt 0:01:06]} 30. a3 {[%emt 0:03:34]} g5 {[%emt 0:00:53]} 31. Rh5 {[%emt 0:00:35]} Bg4 {[%emt 0:00:12]} 32. Rh6 {[%emt 0:00:37]} Kg7 {[%emt 0:00:09]} 33. Rxh7+ {[%emt 0:00:39]} Kxh7 {[%emt 0:00:10]} 34. h3 {[%emt 0:00:24]} Bf5 {[%emt 0:00:25]} 35. Rf3 {[%emt 0:00:39]} Kg6 {[%emt 0:00:04]} 36. g4 {[%emt 0:00:56]} Bxc2 {[%emt 0:00:09]} 37. Rc3 {[%emt 0:00:32]} Bb3 {[%emt 0:00:08]} 38. Ba5 {[%emt 0:01:19]} Ra7 {[%emt 0:00:12]} 39. Bb6 {[%emt 0:00:15]} Rd7 {[%emt 0:00:04]} 40. Bc5 {[%emt 0:00:32]} Rd3 {[%emt 0:00:06]} 41. Rxd3 {[%emt 0:15:23]} cxd3 {[%emt 0:15:05]} 42. Kf1 {[%emt 0:00:21]} d2 {[%emt 0:00:08]} 43. Be3 {[%emt 0:00:30]} d1=Q+ {[%emt 0:00:10]} 44. Kg2 {[%emt 0:00:08]} Bd5+ {[%emt 0:00:06]} 45. f3 {[%emt 0:00:27]} Qxf3+ {[%emt 0:00:18] normal} 46. Kg1 {[%emt 0:00:16]} Qg2# {normal} 0-1

[Event "GER-ch Youth U10w 2019"]
[Site "Willingen"]
[Date "2019.06.10"]
[Round "4.1"]
[White "Mirnaya, Veronika"]
[Black "Glotz, Diana"]
[Result "1-0"]
[ECO "C02"]
[WhiteElo "1237"]
[BlackElo "1244"]
[Annotator "NA"]
[PlyCount "44"]
[EventDate "2019.06.07"]
[EventType "swiss"]
[EventRounds "11"]
[EventCountry "GER"]
[SourceTitle "playchess.com"]
[Source "ChessBase"]
[SourceQuality "1"]
[TimeControl "40/4500+30:900+30"]

1. e4 {[%emt 0:00:00]} e6 {[%emt 0:00:00]} 2. d4 {[%emt 0:00:00]} d5 {[%emt 0:00:00]} 3. e5 {[%emt 0:00:00]} c5 {[%emt 0:00:02]} 4. c3 {[%emt 0:00:02]} Nc6 {[%emt 0:00:15]} 5. Nf3 {[%emt 0:00:11]} Qb6 {[%emt 0:00:57]} 6. a3 {[%emt 0:00:43]} Bd7 {[%emt 0:01:06]} 7. b4 {[%emt 0:00:39]} cxd4 {[%emt 0:01:54]} 8. cxd4 {[%emt 0:00:14]} Nge7 {[%emt 0:04:47]} 9. Be3 {[%emt 0:01:55]} Ng6 {[%emt 0:05:51]} 10. Bd3 {[%emt 0:00:47]} Be7 {[%emt 0:04:44]} 11. O-O {[%emt 0:00:18]} O-O {[%emt 0:01:45]} 12. Nbd2 {[%emt 0:00:49]} f6 {[%emt 0:01:20]} 13. Qc2 {[%emt 0:00:54]} Rac8 {[%emt 0:06:59]} 14. Bxg6 {[%emt 0:03:41]} hxg6 {[%emt 0:00:19]} 15. Qxg6 {[%emt 0:00:22]} Be8 {[%emt 0:03:35]} 16. Qg4 {[%emt 0:00:44]} f5 {[%emt 0:05:34]} 17. Qg3 {[%emt 0:01:24]} Nd8 {[%emt 0:03:20]} 18. Bg5 {[%emt 0:00:39]} Bxg5 {[%emt 0:01:09]} 19. Qxg5 {[%emt 0:00:41]} Bb5 {[%emt 0:03:24]} 20. Rfc1 {[%emt 0:03:16]} Nf7 {[%emt 0:00:59]} 21. Qh4 {[%emt 0:00:52]} a5 {[%emt 0:02:48]} 22. Rc5 {[%emt 0:01:23]} Rc7 {[%emt 0:02:30] normal} 1-0

[Event "GER-ch Youth U10w 2019"]
[Site "Willingen"]
[Date "2019.06.10"]
[Round "4.3"]
[White "Proettel, Ela"]
[Black "Bangiev, Katharina"]
[Result "1/2-1/2"]
[ECO "A40"]
[WhiteElo "1333"]
[BlackElo "1003"]
[Annotator "NA"]
[PlyCount "26"]
[EventDate "2019.06.07"]
[EventType "swiss"]
[EventRounds "11"]
[EventCountry "GER"]
[SourceTitle "playchess.com"]
[Source "ChessBase"]
[SourceQuality "1"]
[TimeControl "40/4500+30:900+30"]

1. d4 {[%emt 0:00:00]} g6 {[%emt 0:00:00]} 2. Bf4 {[%emt 0:00:00]} Bg7 {[%emt 0:00:00]} 3. Nc3 {[%emt 0:00:23]} Nf6 {[%emt 0:00:29]} 4. e4 {[%emt 0:00:31]} d6 {[%emt 0:00:23]} 5. Qd2 {[%emt 0:00:36]} Nc6 {[%emt 0:00:56]} 6. d5 {[%emt 0:01:26]} Ne5 {[%emt 0:01:39]} 7. f3 {[%emt 0:01:02]} O-O {[%emt 0:01:14]} 8. Bh6 {[%emt 0:00:46]} c6 {[%emt 0:00:48]} 9. dxc6 {[%emt 0:11:53]} bxc6 {[%emt 0:01:17]} 10. g4 {[%emt 0:07:33]} Qb6 {[%emt 0:00:59]} 11. O-O-O {[%emt 0:06:27]} Bd7 {[%emt 0:10:12]} 12. Bxg7 {[%emt 0:03:04]} Kxg7 {[%emt 0:00:11]} 13. h4 {[%emt 0:05:16]} Rfb8 {[%emt 0:01:00] normal} 1/2-1/2

[Event "GER-ch Youth U10w 2019"]
[Site "Willingen"]
[Date "2019.06.10"]
[Round "4.4"]
[White "Bakó, Evelin"]
[Black "Oellrich, Emma"]
[Result "0-1"]
[ECO "C00"]
[WhiteElo "1152"]
[BlackElo "1484"]
[Annotator "NA"]
[PlyCount "71"]
[EventDate "2019.06.07"]
[EventType "swiss"]
[EventRounds "11"]
[EventCountry "GER"]
[SourceTitle "playchess.com"]
[Source "ChessBase"]
[SourceQuality "1"]
[TimeControl "40/4500+30:900+30"]

1. e4 {[%emt 0:00:00]} e6 {[%emt 0:00:00]} 2. d4 {[%emt 0:00:00]} d5 {[%emt 0:00:00]} 3. Bd3 {[%emt 0:00:32]} dxe4 {[%emt 0:00:00]} 4. Bxe4 {[%emt 0:01:06]} Nf6 {[%emt 0:00:00]} 5. Bf3 {[%emt 0:00:44]} c5 {[%emt 0:00:02]} 6. Ne2 {[%emt 0:01:37]} Nc6 {[%emt 0:00:28]} 7. Be3 {[%emt 0:02:13]} cxd4 {[%emt 0:00:02]} 8. Nxd4 {[%emt 0:00:58]} Ne5 {[%emt 0:00:05]} 9. Be2 {[%emt 0:02:00]} Be7 {[%emt 0:02:57]} 10. O-O {[%emt 0:02:04]} O-O {[%emt 0:00:13]} 11. Nc3 {[%emt 0:01:32]} b6 {[%emt 0:02:22]} 12. f4 {[%emt 0:02:00]} Ng6 {[%emt 0:03:35]} 13. Bf3 {[%emt 0:03:37]} Nd5 {[%emt 0:00:56]} 14. Nxd5 {[%emt 0:01:51]} exd5 {[%emt 0:00:08]} 15. Nc6 {[%emt 0:01:20]} Qc7 {[%emt 0:08:30]} 16. Bxd5 {[%emt 0:06:00]} Bb7 {[%emt 0:00:15]} 17. Qf3 {[%emt 0:01:58]} Bxc6 {[%emt 0:03:18]} 18. Bxc6 {[%emt 0:01:41]} Rac8 {[%emt 0:00:18]} 19. Bb7 {[%emt 0:03:16]} Nh4 {[%emt 0:00:41]} 20. Qe4 {[%emt 0:04:54]} Qxc2 {[%emt 0:00:53]} 21. Qxc2 {[%emt 0:02:07]} Rxc2 {[%emt 0:00:13]} 22. f5 {[%emt 0:02:34]} g6 {[%emt 0:02:23]} 23. fxg6 {[%emt 0:01:30]} Nxg6 {[%emt 0:00:22]} 24. Bh6 {[%emt 0:01:29]} Bc5+ {[%emt 0:00:27]} 25. Kh1 {[%emt 0:00:52]} Rd8 {[%emt 0:01:58]} 26. Rf6 {[%emt 0:06:49]} Be7 {[%emt 0:05:10]} 27. Rf3 {[%emt 0:05:20]} Rxb2 {[%emt 0:02:20]} 28. Raf1 {[%emt 0:01:47]} f6 {[%emt 0:00:35]} 29. Rg3 {[%emt 0:02:43]} Rf2 {[%emt 0:02:13]} 30. Rf3 {[%emt 0:02:42]} Rxf3 {[%emt 0:01:26]} 31. gxf3 {[%emt 0:01:02]} Bf8 {[%emt 0:00:59]} 32. Be3 {[%emt 0:02:53]} Re8 {[%emt 0:03:15]} 33. Bd5+ {[%emt 0:01:21]} Kg7 {[%emt 0:00:41]} 34. Bc1 {[%emt 0:02:43]} Bd6 {[%emt 0:00:17]} 35. Rg1 {[%emt 0:01:49]} Re2 {[%emt 0:00:18]} 36. f4 {[%emt 0:01:05] normal} 0-1

[Event "GER-ch Youth U10w 2019"]
[Site "Willingen"]
[Date "2019.06.10"]
[Round "4.6"]
[White "Czaeczine, Paula"]
[Black "Trunz, Tamila"]
[Result "1-0"]
[ECO "C44"]
[WhiteElo "1170"]
[BlackElo "1273"]
[Annotator "NA"]
[PlyCount "47"]
[EventDate "2019.06.07"]
[EventType "swiss"]
[EventRounds "11"]
[EventCountry "GER"]
[SourceTitle "playchess.com"]
[Source "ChessBase"]
[SourceQuality "1"]
[TimeControl "40/4500+30:900+30"]

1. e4 {[%emt 0:00:00]} e5 {[%emt 0:00:00]} 2. Nf3 {[%emt 0:00:00]} Nc6 {[%emt 0:00:00]} 3. d4 {[%emt 0:00:00]} exd4 {[%emt 0:00:05]} 4. c3 {[%emt 0:00:00]} dxc3 {[%emt 0:00:35]} 5. Bc4 {[%emt 0:00:02]} Nf6 {[%emt 0:00:41]} 6. Nxc3 {[%emt 0:00:09]} Bb4 {[%emt 0:00:12]} 7. O-O {[%emt 0:00:59]} O-O {[%emt 0:00:26]} 8. e5 {[%emt 0:00:48]} Ng4 {[%emt 0:00:49]} 9. Re1 {[%emt 0:05:39]} Re8 {[%emt 0:01:47]} 10. Qd5 {[%emt 0:02:54]} Qe7 11. Bg5 Qe6 {[%emt 0:05:58]} 12. Qe4 {[%emt 0:01:21]} d5 {[%emt 0:06:00]} 13. Bxd5 {[%emt 0:00:17]} Qg6 {[%emt 0:03:36]} 14. Bxc6 {[%emt 0:01:17]} Bxc3 {[%emt 0:01:30]} 15. Bxe8 {[%emt 0:01:01]} Bxe1 {[%emt 0:06:03]} 16. Qxg6 {[%emt 0:01:14]} Bxf2+ {[%emt 0:03:04]} 17. Kf1 {[%emt 0:00:15]} hxg6 {[%emt 0:00:40]} 18. h3 {[%emt 0:00:30]} Be3 {[%emt 0:03:55]} 19. hxg4 {[%emt 0:00:25]} Bxg5 {[%emt 0:02:05]} 20. Nxg5 {[%emt 0:00:07]} f6 {[%emt 0:00:39]} 21. Nf3 {[%emt 0:00:46]} Bxg4 {[%emt 0:01:33]} 22. Bxg6 {[%emt 0:00:42]} Bxf3 {[%emt 0:00:43]} 23. gxf3 {[%emt 0:00:15]} fxe5 {[%emt 0:00:29]} 24. Re1 {[%emt 0:00:20] normal} 1-0